[Event "36th European Club Cup 2021"]
[Site "Struga"]
[Date "2021.09.18"]
[Round "1.6"]
[White "Nord, Alexander"]
[Black "Pancevski, Filip"]
[Result "1-0"]
[ECO "A49"]
[WhiteElo "2144"]
[BlackElo "2496"]
[Annotator "ChessBase"]
[PlyCount "61"]
[EventDate "2021.09.18"]
[EventType "team-tourn"]
[EventCountry "MKD"]
[SourceTitle "playchess.com"]
[Source "ChessBase"]
[SourceQuality "1"]
[TimeControl "40/5400+30:1800+30"]

1. d4 {[%emt 0:00:04]} Nf6 {[%emt 0:00:15]} 2. Nf3 {[%emt 0:00:06]} g6 {
[%emt 0:00:19]} 3. g3 {[%emt 0:00:07]} Bg7 {[%emt 0:00:08]} 4. Bg2 {[%emt 0:00:
05]} O-O {[%emt 0:00:10]} 5. O-O {[%emt 0:00:06]} d6 {[%emt 0:00:07]} 6. b3 {
[%emt 0:00:05]} a6 {[%emt 0:09:33]} 7. Bb2 {[%emt 0:00:18]} b5 {[%emt 0:01:38]}
8. c4 {[%emt 0:01:04]} Bb7 {[%emt 0:00:48]} 9. Nbd2 {[%emt 0:00:48]} Nbd7 {
[%emt 0:11:32]} 10. Qc2 {[%emt 0:01:17]} Re8 {[%emt 0:10:23]} 11. c5 {[%emt 0:
02:23]} dxc5 {[%emt 0:22:28]} 12. dxc5 {[%emt 0:00:14]} Nb8 {[%emt 0:00:55]}
13. e4 {[%emt 0:11:09]} e6 {[%emt 0:12:25]} 14. Rad1 {[%emt 0:16:21]} Nc6 {
[%emt 0:17:06]} 15. Ne5 {[%emt 0:08:08]} Nd4 {[%emt 0:07:45]} 16. Qb1 {[%emt 0:
28:33]} Nd7 {[%emt 0:00:16]} 17. Bxd4 {[%emt 0:06:43]} Nxe5 {[%emt 0:01:01]}
18. Qa1 {[%emt 0:04:45]} f6 {[%emt 0:00:05]} 19. Bxe5 {[%emt 0:00:51]} fxe5 {
[%emt 0:00:03]} 20. Nc4 {[%emt 0:00:06]} Qe7 {[%emt 0:01:17]} 21. Na5 {[%emt 0:
00:04]} Qxc5 {[%emt 0:01:45]} 22. Nxb7 {[%emt 0:00:40]} Qb6 {[%emt 0:00:02]}
23. Rd7 {[%emt 0:00:22]} Qxb7 {[%emt 0:00:52]} 24. Qc3 {[%emt 0:01:01]} Rac8 {
[%emt 0:00:41]} 25. Rfd1 {[%emt 0:01:45]} Qb6 {[%emt 0:00:25]} 26. Rxg7+ {
[%emt 0:04:06]} Kxg7 {[%emt 0:00:07]} 27. Rd7+ {[%emt 0:00:08]} Kh6 {[%emt 0:
01:07]} 28. Qxe5 {[%emt 0:01:46]} Rf8 {[%emt 0:00:15]} 29. Qg7+ {[%emt 0:01:39]
} Kg5 {[%emt 0:00:01]} 30. Qe7+ {[%emt 0:00:22]} Rf6 {[%emt 0:00:04]} 31. h4+ {
[%emt 0:00:15]} 1-0

[Event "36th European Club Cup 2021"]
[Site "Struga"]
[Date "2021.09.18"]
[Round "1.12"]
[White "Goganov, Aleksey"]
[Black "Gimeno Higueras, Roberto"]
[Result "1-0"]
[ECO "E14"]
[WhiteElo "2559"]
[BlackElo "2214"]
[Annotator "ChessBase"]
[PlyCount "73"]
[EventDate "2021.09.18"]
[EventType "team-tourn"]
[EventCountry "MKD"]
[SourceTitle "playchess.com"]
[Source "ChessBase"]
[SourceQuality "1"]
[TimeControl "40/5400+30:1800+30"]

1. d4 {[%emt 0:00:04]} Nf6 {[%emt 0:00:14]} 2. c4 {[%emt 0:00:04]} e6 {[%emt 0:
00:23]} 3. Nf3 {[%emt 0:00:12]} Bb4+ {[%emt 0:02:27]} 4. Nbd2 {[%emt 0:00:11]}
O-O {[%emt 0:00:32]} 5. a3 {[%emt 0:00:05]} Bxd2+ {[%emt 0:01:36]} 6. Qxd2 {
[%emt 0:04:48]} b6 {[%emt 0:04:41]} 7. e3 {[%emt 0:00:25]} Bb7 {[%emt 0:01:09]}
8. Be2 {[%emt 0:00:13]} d5 {[%emt 0:05:04]} 9. b4 {[%emt 0:04:53]} dxc4 {
[%emt 0:03:11]} 10. Bxc4 {[%emt 0:00:04]} a5 {[%emt 0:01:44]} 11. b5 {[%emt 0:
00:28]} Ne4 {[%emt 0:02:50]} 12. Qe2 {[%emt 0:05:54]} Nd7 {[%emt 0:02:39]} 13.
Bb2 {[%emt 0:02:55]} Ng5 {[%emt 0:05:58]} 14. Nxg5 {[%emt 0:11:56]} Qxg5 {
[%emt 0:00:09]} 15. f3 {[%emt 0:00:05]} c6 {[%emt 0:02:56]} 16. bxc6 {[%emt 0:
04:14]} Bxc6 {[%emt 0:00:09]} 17. Rc1 {[%emt 0:00:07]} Rfc8 {[%emt 0:05:26]}
18. O-O {[%emt 0:01:22]} Bb7 {[%emt 0:10:58]} 19. e4 {[%emt 0:14:18]} Nf8 {
[%emt 0:01:21]} 20. g3 {[%emt 0:03:22]} h5 {[%emt 0:02:40]} 21. Bd3 {[%emt 0:
00:53]} Ng6 {[%emt 0:07:34]} 22. Kf2 {[%emt 0:00:21]} h4 {[%emt 0:04:41]} 23.
Qe3 {[%emt 0:01:00]} Qe7 {[%emt 0:00:55]} 24. Bb5 {[%emt 0:13:26]} Qd6 {
[%emt 0:06:32]} 25. a4 {[%emt 0:09:24]} Rxc1 {[%emt 0:01:43]} 26. Rxc1 {
[%emt 0:00:11]} Rd8 {[%emt 0:00:07]} 27. Rc4 {[%emt 0:04:53]} e5 {[%emt 0:07:
16]} 28. d5 {[%emt 0:00:23]} f5 {[%emt 0:00:43]} 29. exf5 {[%emt 0:02:07]}
hxg3+ {[%emt 0:03:51]} 30. hxg3 {[%emt 0:00:05]} Ne7 {[%emt 0:00:29]} 31. Qxe5
{[%emt 0:04:03]} Qxe5 {[%emt 0:00:25]} 32. Bxe5 {[%emt 0:00:04]} Rxd5 {[%emt 0:
06:06]} 33. f4 {[%emt 0:00:14]} Rc5 {[%emt 0:03:57]} 34. Rxc5 {[%emt 0:00:15]}
bxc5 {[%emt 0:00:02]} 35. Bd6 {[%emt 0:01:38]} Nxf5 {[%emt 0:01:17]} 36. Bc4+ {
[%emt 0:00:11]} Kh7 {[%emt 0:00:18]} 37. Bxc5 {[%emt 0:00:06]} 1-0

[Event "36th European Club Cup 2021"]
[Site "Struga"]
[Date "2021.09.18"]
[Round "1.24"]
[White "Sychev, Klementy"]
[Black "Dishman, Matthew"]
[Result "1-0"]
[ECO "B42"]
[WhiteElo "2556"]
[BlackElo "1949"]
[Annotator "ChessBase"]
[PlyCount "55"]
[EventDate "2021.09.18"]
[EventType "team-tourn"]
[EventCountry "MKD"]
[SourceTitle "playchess.com"]
[Source "ChessBase"]
[SourceQuality "1"]
[TimeControl "40/5400+30:1800+30"]

1. e4 {[%emt 0:00:43]} c5 {[%emt 0:00:07]} 2. Nf3 {[%emt 0:00:13]} e6 {[%emt 0:
00:04]} 3. d4 {[%emt 0:00:09]} cxd4 {[%emt 0:00:05]} 4. Nxd4 {[%emt 0:00:04]}
a6 {[%emt 0:00:08]} 5. Bd3 {[%emt 0:01:08]} g6 {[%emt 0:00:08]} 6. Nc3 {
[%emt 0:00:24]} Bg7 {[%emt 0:00:16]} 7. Be3 {[%emt 0:00:05]} Ne7 {[%emt 0:00:
30]} 8. Qd2 {[%emt 0:02:38]} d5 {[%emt 0:00:57]} 9. Nf3 {[%emt 0:06:07]} dxe4 {
[%emt 0:14:18]} 10. Nxe4 {[%emt 0:00:12]} O-O {[%emt 0:01:39]} 11. Bh6 {
[%emt 0:08:41]} Nf5 {[%emt 0:15:07]} 12. Bxg7 {[%emt 0:00:25]} Kxg7 {[%emt 0:
01:59]} 13. Qc3+ {[%emt 0:00:36]} f6 {[%emt 0:01:34]} 14. g4 {[%emt 0:01:15]}
Nd6 {[%emt 0:03:50]} 15. O-O-O {[%emt 0:00:57]} Nxe4 {[%emt 0:10:28]} 16. Bxe4
{[%emt 0:00:13]} Qe7 {[%emt 0:01:09]} 17. g5 {[%emt 0:00:22]} Nd7 {[%emt 0:04:
51]} 18. Rhe1 {[%emt 0:13:59]} Rf7 {[%emt 0:09:13]} 19. h4 {[%emt 0:01:07]} Nf8
{[%emt 0:03:10]} 20. Rg1 {[%emt 0:04:58]} Rb8 {[%emt 0:08:37]} 21. Ne5 {
[%emt 0:01:14]} Bd7 {[%emt 0:03:12]} 22. Nxf7 {[%emt 0:00:16]} Kxf7 {[%emt 0:
00:16]} 23. Qc7 {[%emt 0:01:27]} Rc8 {[%emt 0:04:23]} 24. Qxb7 {[%emt 0:00:10]}
f5 {[%emt 0:00:12]} 25. Bf3 {[%emt 0:02:41]} Kg8 {[%emt 0:02:03]} 26. c3 {
[%emt 0:00:56]} a5 {[%emt 0:03:04]} 27. Rd2 {[%emt 0:00:14]} a4 {[%emt 0:01:43]
} 28. Rgd1 {[%emt 0:00:16]} 1-0

[Event "36th European Club Cup 2021"]
[Site "Struga"]
[Date "2021.09.18"]
[Round "1.29"]
[White "Alonso Rosell, Alvar"]
[Black "Petursson, Gudni"]
[Result "1-0"]
[ECO "E17"]
[WhiteElo "2566"]
[BlackElo "2016"]
[Annotator "ChessBase"]
[PlyCount "72"]
[EventDate "2021.09.18"]
[EventType "team-tourn"]
[EventCountry "MKD"]
[SourceTitle "playchess.com"]
[Source "ChessBase"]
[SourceQuality "1"]
[TimeControl "40/5400+30:1800+30"]

1. Nf3 {[%emt 0:00:05]} Nf6 {[%emt 0:00:39]} 2. c4 {[%emt 0:00:30]} e6 {
[%emt 0:01:13]} 3. g3 {[%emt 0:00:54]} d5 {[%emt 0:00:07]} 4. Bg2 {[%emt 0:00:
05]} Be7 {[%emt 0:03:39]} 5. O-O {[%emt 0:00:33]} O-O {[%emt 0:00:09]} 6. b3 {
[%emt 0:00:10]} b6 {[%emt 0:01:44]} 7. cxd5 {[%emt 0:02:21]} exd5 {[%emt 0:00:
21]} 8. d4 {[%emt 0:00:07]} Bb7 {[%emt 0:01:03]} 9. Nc3 {[%emt 0:00:15]} Nbd7 {
[%emt 0:05:17]} 10. Bb2 {[%emt 0:03:32]} Re8 {[%emt 0:06:53]} 11. Rc1 {[%emt 0:
01:00]} c6 {[%emt 0:02:02]} 12. e3 {[%emt 0:03:04]} Bd6 {[%emt 0:02:37]} 13.
Ne2 {[%emt 0:05:30]} Qe7 {[%emt 0:02:02]} 14. Nf4 {[%emt 0:02:20]} Rac8 {
[%emt 0:00:22]} 15. Nd3 {[%emt 0:03:33]} Ba3 {[%emt 0:02:24]} 16. Qc2 {[%emt 0:
02:47]} Bxb2 {[%emt 0:00:07]} 17. Qxb2 {[%emt 0:00:06]} Rc7 {[%emt 0:06:15]}
18. Rc2 {[%emt 0:00:41]} Ne4 {[%emt 0:04:52]} 19. Rfc1 {[%emt 0:03:56]} c5 {
[%emt 0:01:10]} 20. Qa3 {[%emt 0:04:22]} f5 {[%emt 0:02:14]} 21. dxc5 {[%emt 0:
03:35]} bxc5 {[%emt 0:01:09]} 22. Qa5 {[%emt 0:04:09]} Rec8 {[%emt 0:01:46]}
23. Nd4 {[%emt 0:02:17]} c4 {[%emt 0:53:55]} 24. Nb5 {[%emt 0:27:16]} Ndc5 {
[%emt 0:00:00]} 25. Nxc7 {[%emt 0:20:58]} Nxd3 {[%emt 0:00:00]} 26. Nxd5 {
[%emt 0:00:46]} Qd7 {[%emt 0:00:00]} 27. bxc4 {[%emt 0:05:25]} Nxc1 {[%emt 0:
00:00]} 28. Bxe4 {[%emt 0:00:06]} fxe4 {[%emt 0:00:00]} 29. Rxc1 {[%emt 0:00:
11]} Bxd5 {[%emt 0:00:00]} 30. Rd1 {[%emt 0:00:07]} Rxc4 {[%emt 0:00:00]} 31.
Rxd5 {[%emt 0:00:09]} Rc1+ {[%emt 0:00:00]} 32. Kg2 {[%emt 0:00:02]} Qc7 {
[%emt 0:00:00]} 33. Rd8+ {[%emt 0:00:09]} Kf7 {[%emt 0:00:00]} 34. Qf5+ {
[%emt 0:00:14]} Ke7 {[%emt 0:00:00]} 35. Qf8+ {[%emt 0:00:03]} Ke6 {[%emt 0:00:
00]} 36. Re8+ {[%emt 0:00:05]} Kd5 {[%emt 0:06:30]} 1-0

[Event "36th European Club Cup 2021"]
[Site "Struga"]
[Date "2021.09.18"]
[Round "1.30"]
[White "Runarsson, Gunnar"]
[Black "Henderson de La Fuente, Lance"]
[Result "0-1"]
[ECO "A47"]
[WhiteElo "1944"]
[BlackElo "2491"]
[Annotator "ChessBase"]
[PlyCount "78"]
[EventDate "2021.09.18"]
[EventType "team-tourn"]
[EventCountry "MKD"]
[SourceTitle "playchess.com"]
[Source "ChessBase"]
[SourceQuality "1"]
[TimeControl "40/5400+30:1800+30"]

1. d4 {[%emt 0:00:02]} Nf6 {[%emt 0:00:24]} 2. Nf3 {[%emt 0:00:13]} b6 {
[%emt 0:00:48]} 3. Bf4 {[%emt 0:00:54]} Bb7 {[%emt 0:01:15]} 4. e3 {[%emt 0:00:
57]} g6 {[%emt 0:00:24]} 5. Bd3 {[%emt 0:01:56]} Bg7 {[%emt 0:01:06]} 6. O-O {
[%emt 0:02:24]} O-O {[%emt 0:01:37]} 7. c4 {[%emt 0:01:24]} d6 {[%emt 0:02:27]}
8. Nc3 {[%emt 0:01:10]} Nbd7 {[%emt 0:01:00]} 9. Qe2 {[%emt 0:03:41]} Re8 {
[%emt 0:04:11]} 10. e4 {[%emt 0:06:26]} e5 {[%emt 0:02:46]} 11. dxe5 {[%emt 0:
03:16]} dxe5 {[%emt 0:01:18]} 12. Bg5 {[%emt 0:00:43]} h6 {[%emt 0:01:41]} 13.
Bh4 {[%emt 0:01:45]} c6 {[%emt 0:02:22]} 14. Rad1 {[%emt 0:05:42]} Qc7 {
[%emt 0:01:13]} 15. Bc2 {[%emt 0:02:47]} Nh5 {[%emt 0:03:10]} 16. Rd2 {[%emt 0:
10:31]} Nc5 {[%emt 0:02:41]} 17. Rfd1 {[%emt 0:06:23]} Ne6 {[%emt 0:08:55]} 18.
Bg3 {[%emt 0:04:41]} Nd4 {[%emt 0:09:24]} 19. Qe3 {[%emt 0:13:29]} Nxg3 {
[%emt 0:00:56]} 20. hxg3 {[%emt 0:00:53]} Rad8 {[%emt 0:00:17]} 21. Bb1 {
[%emt 0:01:29]} Bc8 {[%emt 0:06:43]} 22. Ne2 {[%emt 0:07:27]} Ne6 {[%emt 0:06:
57]} 23. b3 {[%emt 0:04:10]} h5 {[%emt 0:01:06]} 24. Rxd8 {[%emt 0:07:46]} Rxd8
{[%emt 0:00:19]} 25. Rxd8+ {[%emt 0:00:45]} Qxd8 {[%emt 0:00:03]} 26. Qd3 {
[%emt 0:01:35]} Qe7 {[%emt 0:00:08]} 27. Qc3 {[%emt 0:01:24]} Qd6 {[%emt 0:04:
21]} 28. Qd2 {[%emt 0:04:17]} Qe7 {[%emt 0:02:29]} 29. b4 {[%emt 0:00:51]} f6 {
[%emt 0:04:10]} 30. a3 {[%emt 0:01:26]} Bf8 {[%emt 0:01:19]} 31. Ba2 {[%emt 0:
02:01]} Qd6 {[%emt 0:02:59]} 32. Qc2 {[%emt 0:00:41]} Kg7 {[%emt 0:02:52]} 33.
Bb3 {[%emt 0:01:46]} c5 {[%emt 0:10:32]} 34. b5 {[%emt 0:00:54]} Nd4 {[%emt 0:
00:15]} 35. Qd1 {[%emt 0:00:58]} Be6 {[%emt 0:03:58]} 36. Nfxd4 {[%emt 0:00:44]
} cxd4 {[%emt 0:00:28]} 37. a4 {[%emt 0:00:25]} Qb4 {[%emt 0:00:27]} 38. Qc1 {
[%emt 0:01:02]} Qxb3 {[%emt 0:12:29]} 39. Qd1 {[%emt 0:01:02]} Qb4 {[%emt 0:00:
00]} 0-1

[Event "36th European Club Cup 2021"]
[Site "Struga"]
[Date "2021.09.18"]
[Round "1.34"]
[White "Rozentalis, Eduardas"]
[Black "Van Meegen, Ruud"]
[Result "1-0"]
[ECO "B10"]
[WhiteElo "2509"]
[BlackElo "2291"]
[Annotator "ChessBase"]
[PlyCount "77"]
[EventDate "2021.09.18"]
[EventType "team-tourn"]
[EventCountry "MKD"]
[SourceTitle "playchess.com"]
[Source "ChessBase"]
[SourceQuality "1"]
[TimeControl "40/5400+30:1800+30"]

1. e4 {[%emt 0:00:03]} c6 {[%emt 0:00:07]} 2. d3 {[%emt 0:00:30]} d5 {[%emt 0:
00:06]} 3. Nd2 {[%emt 0:00:04]} g6 {[%emt 0:01:08]} 4. Ngf3 {[%emt 0:01:06]}
Bg7 {[%emt 0:00:10]} 5. g3 {[%emt 0:00:14]} e5 {[%emt 0:04:08]} 6. Bg2 {
[%emt 0:00:17]} Ne7 {[%emt 0:00:10]} 7. Qe2 {[%emt 0:02:10]} Qc7 {[%emt 0:04:
06]} 8. O-O {[%emt 0:01:05]} O-O {[%emt 0:00:06]} 9. c3 {[%emt 0:11:32]} h6 {
[%emt 0:10:31]} 10. Re1 {[%emt 0:02:51]} Nd7 {[%emt 0:02:36]} 11. d4 {[%emt 0:
09:09]} dxe4 {[%emt 0:12:27]} 12. Nxe5 {[%emt 0:05:20]} f5 {[%emt 0:12:31]} 13.
Qc4+ {[%emt 0:13:35]} Kh7 {[%emt 0:00:08]} 14. Nxd7 {[%emt 0:00:09]} Qxd7 {
[%emt 0:02:20]} 15. f3 {[%emt 0:01:19]} exf3 {[%emt 0:00:14]} 16. Nxf3 {
[%emt 0:01:07]} Nd5 {[%emt 0:00:14]} 17. Ne5 {[%emt 0:06:45]} Qd6 {[%emt 0:00:
15]} 18. Qb3 {[%emt 0:01:45]} g5 {[%emt 0:22:09]} 19. c4 {[%emt 0:07:47]} Nc7 {
[%emt 0:03:28]} 20. Be3 {[%emt 0:02:20]} c5 {[%emt 0:01:19]} 21. Rad1 {[%emt 0:
02:16]} Ne6 {[%emt 0:00:11]} 22. d5 {[%emt 0:02:23]} Nd4 {[%emt 0:08:31]} 23.
Bxd4 {[%emt 0:02:14]} cxd4 {[%emt 0:00:06]} 24. Nf3 {[%emt 0:02:46]} f4 {
[%emt 0:04:22]} 25. Nxd4 {[%emt 0:03:33]} Bg4 {[%emt 0:05:54]} 26. Bf3 {
[%emt 0:01:23]} Bxf3 {[%emt 0:02:46]} 27. Qxf3 {[%emt 0:02:01]} fxg3 {[%emt 0:
01:28]} 28. Qxg3 {[%emt 0:01:13]} Qb6 {[%emt 0:00:20]} 29. Kh1 {[%emt 0:03:42]}
Qxb2 {[%emt 0:01:02]} 30. Ne6 {[%emt 0:00:50]} Rf7 {[%emt 0:01:00]} 31. d6 {
[%emt 0:01:43]} Qb6 {[%emt 0:00:41]} 32. d7 {[%emt 0:03:47]} Qc6+ {[%emt 0:00:
55]} 33. Qg2 {[%emt 0:00:19]} Qxg2+ {[%emt 0:00:46]} 34. Kxg2 {[%emt 0:00:06]}
Bf6 {[%emt 0:00:14]} 35. Rf1 {[%emt 0:01:03]} Kg6 {[%emt 0:00:23]} 36. d8=Q {
[%emt 0:00:18]} Bxd8 {[%emt 0:00:27]} 37. Rxf7 {[%emt 0:00:11]} Kxf7 {[%emt 0:
00:18]} 38. Rxd8 {[%emt 0:00:27]} Rxd8 {[%emt 0:00:19]} 39. Nxd8+ {[%emt 0:00:
07]} 1-0

[Event "36th European Club Cup 2021"]
[Site "Struga"]
[Date "2021.09.18"]
[Round "1.40"]
[White "Asllani, Muhamet"]
[Black "Postny, Evgeny"]
[Result "1/2-1/2"]
[ECO "B13"]
[WhiteElo "2225"]
[BlackElo "2564"]
[Annotator "ChessBase"]
[PlyCount "92"]
[EventDate "2021.09.18"]
[EventType "team-tourn"]
[EventCountry "MKD"]
[SourceTitle "playchess.com"]
[Source "ChessBase"]
[SourceQuality "1"]
[TimeControl "40/5400+30:1800+30"]

1. e4 {[%emt 0:00:20]} c6 {[%emt 0:00:07]} 2. d4 {[%emt 0:00:42]} d5 {[%emt 0:
00:05]} 3. exd5 {[%emt 0:00:13]} cxd5 {[%emt 0:00:04]} 4. Bd3 {[%emt 0:00:28]}
Nf6 {[%emt 0:00:06]} 5. c3 {[%emt 0:00:12]} Bg4 {[%emt 0:00:13]} 6. Nf3 {
[%emt 0:00:30]} e6 {[%emt 0:01:14]} 7. h3 {[%emt 0:00:17]} Bh5 {[%emt 0:00:18]}
8. O-O {[%emt 0:05:38]} Bd6 {[%emt 0:00:13]} 9. Bg5 {[%emt 0:02:46]} Nbd7 {
[%emt 0:01:41]} 10. Nbd2 {[%emt 0:00:21]} Qc7 {[%emt 0:03:43]} 11. Qa4 {
[%emt 0:06:03]} O-O {[%emt 0:08:33]} 12. Rfe1 {[%emt 0:06:10]} Bg6 {[%emt 0:02:
27]} 13. Qc2 {[%emt 0:02:58]} b5 {[%emt 0:03:11]} 14. Bxf6 {[%emt 0:01:55]}
Nxf6 {[%emt 0:00:28]} 15. Bxg6 {[%emt 0:00:31]} hxg6 {[%emt 0:00:05]} 16. Qd3 {
[%emt 0:00:11]} Rfc8 {[%emt 0:03:00]} 17. Rac1 {[%emt 0:01:12]} a5 {[%emt 0:06:
47]} 18. Ne5 {[%emt 0:09:02]} Bxe5 {[%emt 0:02:05]} 19. dxe5 {[%emt 0:01:42]}
Nd7 {[%emt 0:00:09]} 20. Qg3 {[%emt 0:00:06]} Nc5 {[%emt 0:05:50]} 21. Re3 {
[%emt 0:02:41]} Qd8 {[%emt 0:08:24]} 22. Rd1 {[%emt 0:01:15]} d4 {[%emt 0:02:
01]} 23. Nf3 {[%emt 0:02:49]} dxe3 {[%emt 0:07:55]} 24. Rxd8+ {[%emt 0:00:10]}
Rxd8 {[%emt 0:00:05]} 25. fxe3 {[%emt 0:00:14]} Rd1+ {[%emt 0:17:22]} 26. Kh2 {
[%emt 0:00:12]} Rf1 {[%emt 0:00:14]} 27. Qh4 {[%emt 0:02:05]} Nd7 {[%emt 0:02:
30]} 28. Qe4 {[%emt 0:00:08]} Ra7 {[%emt 0:02:25]} 29. Nd4 {[%emt 0:00:08]} Nf8
{[%emt 0:03:32]} 30. Nxb5 {[%emt 0:00:32]} Rd7 {[%emt 0:00:18]} 31. Nd6 {
[%emt 0:00:56]} Rf2 {[%emt 0:00:28]} 32. b4 {[%emt 0:01:52]} axb4 {[%emt 0:01:
06]} 33. cxb4 {[%emt 0:00:08]} Ra7 {[%emt 0:00:50]} 34. b5 {[%emt 0:01:48]}
Raxa2 {[%emt 0:00:08]} 35. b6 {[%emt 0:00:17]} Nd7 {[%emt 0:02:41]} 36. b7 {
[%emt 0:00:29]} Rxg2+ {[%emt 0:12:40]} 37. Qxg2 {[%emt 0:00:15]} Rxg2+ {
[%emt 0:00:04]} 38. Kxg2 {[%emt 0:00:07]} Kf8 {[%emt 0:00:12]} 39. Kg3 {
[%emt 0:01:20]} Ke7 {[%emt 0:01:17]} 40. Ne4 {[%emt 0:00:00]} f6 {[%emt 0:00:
00]} 41. Nc5 {[%emt 0:03:07]} Nb8 {[%emt 0:03:21]} 42. Kf4 {[%emt 0:00:53]} Kf7
{[%emt 0:01:44]} 43. h4 {[%emt 0:00:14]} Ke7 {[%emt 0:00:34]} 44. Ke4 {[%emt 0:
00:10]} Kf7 {[%emt 0:00:34]} 45. Kf4 {[%emt 0:00:12]} Ke7 {[%emt 0:00:12]} 46.
Ke4 {[%emt 0:00:07]} Kf7 {[%emt 0:00:10]} 1/2-1/2

[Event "36th European Club Cup 2021"]
[Site "Struga"]
[Date "2021.09.18"]
[Round "1.41"]
[White "Huzman, Alexander"]
[Black "Zymberi, Astrit"]
[Result "1/2-1/2"]
[ECO "D25"]
[WhiteElo "2547"]
[BlackElo "2107"]
[Annotator "ChessBase"]
[PlyCount "52"]
[EventDate "2021.09.18"]
[EventType "team-tourn"]
[EventCountry "MKD"]
[SourceTitle "playchess.com"]
[Source "ChessBase"]
[SourceQuality "1"]
[TimeControl "40/5400+30:1800+30"]

1. Nf3 {[%emt 0:00:08]} d5 {[%emt 0:03:29]} 2. d4 {[%emt 0:01:09]} Nf6 {
[%emt 0:00:10]} 3. c4 {[%emt 0:00:17]} dxc4 {[%emt 0:00:10]} 4. e3 {[%emt 0:00:
22]} Bg4 {[%emt 0:00:25]} 5. Bxc4 {[%emt 0:01:29]} e6 {[%emt 0:03:05]} 6. h3 {
[%emt 0:01:57]} Bh5 {[%emt 0:00:23]} 7. Be2 {[%emt 0:00:38]} Nc6 {[%emt 0:02:
59]} 8. Nbd2 {[%emt 0:06:24]} Bd6 {[%emt 0:05:48]} 9. O-O {[%emt 0:06:34]} O-O
{[%emt 0:02:36]} 10. Nc4 {[%emt 0:01:48]} Qe7 {[%emt 0:05:35]} 11. b3 {[%emt 0:
03:13]} Nd5 {[%emt 0:05:20]} 12. Bb2 {[%emt 0:04:57]} f5 {[%emt 0:01:40]} 13.
Nfe5 {[%emt 0:16:01]} Bxe2 {[%emt 0:09:22]} 14. Nxc6 {[%emt 0:01:52]} bxc6 {
[%emt 0:41:25]} 15. Qxe2 {[%emt 0:00:46]} f4 {[%emt 0:00:11]} 16. exf4 {
[%emt 0:13:10]} Nxf4 {[%emt 0:03:26]} 17. Qe4 {[%emt 0:00:55]} Qh4 {[%emt 0:06:
39]} 18. Rae1 {[%emt 0:00:41]} Rf6 {[%emt 0:01:33]} 19. Nxd6 {[%emt 0:11:16]}
Rg6 {[%emt 0:03:51]} 20. g3 {[%emt 0:09:08]} Rxg3+ {[%emt 0:01:43]} 21. fxg3 {
[%emt 0:00:12]} Qxg3+ {[%emt 0:00:19]} 22. Kh1 {[%emt 0:00:01]} Qxh3+ {[%emt 0:
00:29]} 23. Kg1 {[%emt 0:00:03]} Qg3+ {[%emt 0:00:20]} 24. Kh1 {[%emt 0:00:02]}
Qh3+ {[%emt 0:00:10]} 25. Kg1 {[%emt 0:00:02]} Qg3+ {[%emt 0:00:10]} 26. Kh1 {
[%emt 0:00:02]} Qh3+ {[%emt 0:00:31]} 1/2-1/2

[Event "36th European Club Cup 2021"]
[Site "Struga"]
[Date "2021.09.18"]
[Round "1.44"]
[White "Urkedal, Frode Olav Olsen"]
[Black "Hammes, Michael"]
[Result "1-0"]
[ECO "C12"]
[WhiteElo "2568"]
[BlackElo "2345"]
[Annotator "ChessBase"]
[PlyCount "53"]
[EventDate "2021.09.18"]
[EventType "team-tourn"]
[EventCountry "MKD"]
[SourceTitle "playchess.com"]
[Source "ChessBase"]
[SourceQuality "1"]
[TimeControl "40/5400+30:1800+30"]

1. d4 {[%emt 0:00:04]} e6 {[%emt 0:00:07]} 2. e4 {[%emt 0:00:03]} d5 {[%emt 0:
00:07]} 3. Nc3 {[%emt 0:00:03]} Nf6 {[%emt 0:00:10]} 4. Bg5 {[%emt 0:00:10]}
Bb4 {[%emt 0:00:11]} 5. e5 {[%emt 0:00:05]} h6 {[%emt 0:00:07]} 6. Bd2 {
[%emt 0:00:02]} Bxc3 {[%emt 0:00:12]} 7. bxc3 {[%emt 0:00:04]} Ne4 {[%emt 0:00:
09]} 8. Bc1 {[%emt 0:00:30]} c5 {[%emt 0:05:16]} 9. Ne2 {[%emt 0:02:39]} Nc6 {
[%emt 0:04:29]} 10. f3 {[%emt 0:02:18]} Ng5 {[%emt 0:00:54]} 11. Ng3 {[%emt 0:
04:46]} f5 {[%emt 0:17:43]} 12. h4 {[%emt 0:06:24]} Nh7 {[%emt 0:03:27]} 13.
Nh5 {[%emt 0:00:45]} O-O {[%emt 0:07:25]} 14. Be3 {[%emt 0:03:01]} Qa5 {
[%emt 0:06:51]} 15. Qd2 {[%emt 0:00:15]} cxd4 {[%emt 0:03:17]} 16. cxd4 {
[%emt 0:00:06]} Qxd2+ {[%emt 0:00:12]} 17. Kxd2 {[%emt 0:00:05]} Na5 {[%emt 0:
00:20]} 18. g4 {[%emt 0:03:56]} fxg4 {[%emt 0:02:41]} 19. fxg4 {[%emt 0:00:07]}
Bd7 {[%emt 0:01:05]} 20. Bd3 {[%emt 0:06:37]} Nc4+ {[%emt 0:08:03]} 21. Ke2 {
[%emt 0:00:07]} Rfc8 {[%emt 0:15:19]} 22. g5 {[%emt 0:01:52]} hxg5 {[%emt 0:07:
11]} 23. hxg5 {[%emt 0:00:07]} Nf8 {[%emt 0:00:24]} 24. Nf6+ {[%emt 0:09:41]}
Kf7 {[%emt 0:02:11]} 25. g6+ {[%emt 0:00:11]} Ke7 {[%emt 0:00:07]} 26. Bg5 {
[%emt 0:00:33]} Be8 {[%emt 0:01:47]} 27. Nh7+ {[%emt 0:00:40]} 1-0

[Event "36th European Club Cup 2021"]
[Site "Struga"]
[Date "2021.09.18"]
[Round "1.46"]
[White "Ranaldi, Lucas"]
[Black "Sparwel, Oliver"]
[Result "1-0"]
[ECO "A54"]
[WhiteElo "2325"]
[BlackElo "2013"]
[Annotator "NA"]
[PlyCount "55"]
[EventDate "2021.09.18"]
[EventType "team-tourn"]
[EventCountry "MKD"]
[SourceTitle "playchess.com"]
[Source "ChessBase"]
[SourceQuality "1"]
[TimeControl "40/5400+30:1800+30"]

1. Nf3 {[%emt 0:00:07]} d6 {[%emt 0:00:34]} 2. d4 {[%emt 0:00:16]} Nf6 {
[%emt 0:00:27]} 3. c4 {[%emt 0:01:44]} Nbd7 {[%emt 0:00:16]} 4. Nc3 {[%emt 0:
00:22]} e5 {[%emt 0:00:11]} 5. Bg5 {[%emt 0:01:03]} Be7 {[%emt 0:00:21]} 6. e3
{[%emt 0:00:18]} O-O {[%emt 0:01:48]} 7. Be2 {[%emt 0:02:04]} c6 {[%emt 0:00:
51]} 8. Qc2 {[%emt 0:01:12]} Re8 {[%emt 0:00:26]} 9. O-O {[%emt 0:01:47]} Qc7 {
[%emt 0:02:01]} 10. h3 {[%emt 0:08:19]} b6 {[%emt 0:01:43]} 11. Rfd1 {[%emt 0:
05:37]} Bb7 {[%emt 0:00:28]} 12. Bh4 {[%emt 0:05:25]} Nf8 {[%emt 0:08:32]} 13.
Bg3 {[%emt 0:10:53]} Ng6 {[%emt 0:00:46]} 14. Rac1 {[%emt 0:03:59]} Bf8 {
[%emt 0:02:39]} 15. b4 {[%emt 0:22:11]} Qe7 {[%emt 0:12:14]} 16. c5 {[%emt 0:
13:16]} dxc5 {[%emt 0:02:00]} 17. dxe5 {[%emt 0:00:04]} Nd7 {[%emt 0:00:34]}
18. Ne4 {[%emt 0:05:26]} Ndxe5 {[%emt 0:02:09]} 19. Nxe5 {[%emt 0:01:05]} Nxe5
{[%emt 0:00:08]} 20. Nd6 {[%emt 0:01:32]} Rab8 {[%emt 0:28:34]} 21. Nxe8 {
[%emt 0:02:22]} Rxe8 {[%emt 0:00:07]} 22. bxc5 {[%emt 0:00:16]} bxc5 {[%emt 0:
01:28]} 23. Qb2 {[%emt 0:02:46]} Bc8 {[%emt 0:02:04]} 24. Bxe5 {[%emt 0:00:53]}
Qxe5 {[%emt 0:04:35]} 25. Qxe5 {[%emt 0:00:08]} Rxe5 {[%emt 0:00:07]} 26. Rd8 {
[%emt 0:00:22]} Be6 {[%emt 0:04:09]} 27. Rb1 {[%emt 0:06:21]} Rd5 {[%emt 0:01:
08]} 28. Ra8 {[%emt 0:00:09]} 1-0